fUSD/lending_fUSD_20240327
["ID","MTS","AMOUNT","RATE_DAILY","PERIOD"]
[320744472,1711543894557,-500.0,0.00056164,7]
[320744473,1711543894567,-991.15,0.00056164,120]
[320744474,1711543894576,-500.0,0.00056164,120]
[320744475,1711543894586,-500.0,0.00056164,120]
[320744476,1711543894596,-684.84,0.00056164,120]
[320744477,1711543894607,-500.0,0.00056164,120]
[320744478,1711543894618,-670.41,0.00056164,120]
[320744479,1711543894628,-500.0,0.00056164,120]
[320744480,1711543894638,-688.53,0.00056164,120]
[320744481,1711543894649,-10352.43,0.00056164,120]
[320744482,1711543894662,-759.99,0.00056164,120]
[320744483,1711543894672,-8690.1,0.00056164,120]
[320744484,1711543894683,-5002.55,0.00056164,120]
[320744485,1711543894693,-4330.07,0.00056164,120]
[320744486,1711543894706,-2895.84,0.00056164,120]
[320744487,1711543894716,-2172.19,0.00056164,120]
[320744488,1711543894726,-500.0,0.00056164,120]
[320744489,1711543894737,-500.0,0.00056164,120]
[320744490,1711543894747,-500.0,0.00056164,120]
[320744491,1711543894758,-2732.75,0.00056164,120]
[320744492,1711543894768,-1796.45,0.00056164,120]
[320744493,1711543894778,-5480.38,0.00056164,120]
[320744494,1711543894789,-16950.66,0.00056164,120]
[320744495,1711543894799,-500.0,0.00056164,120]
[320744496,1711543894808,-500.0,0.00056164,120]
[320744497,1711543894818,-773.1,0.00056164,120]
[320744498,1711543894829,-3400.43,0.00056164,120]
[320744499,1711543894839,-500.0,0.00056164,120]
[320744500,1711543894851,-5091.09,0.00056164,21]
[320744501,1711543894860,-500.0,0.00056164,120]
[320744502,1711543894870,-19292.32,0.00056164,120]
[320744503,1711543894880,-500.0,0.00056164,120]
[320744504,1711543894889,-17160.48,0.00056164,120]
[320744505,1711543894899,-8474.88,0.00056164,120]
[320744506,1711543894908,-500.0,0.00056164,120]
[320744507,1711543894918,-649.49,0.00056164,120]
[320744508,1711543894928,-2690.5,0.00056164,120]
[320744509,1711543894938,-4740.83,0.00056164,120]
[320744510,1711543894947,-938.28,0.00056164,120]
[320744511,1711543894957,-278.467826,0.00056164,120]
[320744512,1711543894967,-12410.62,0.00056164,120]
[320744513,1711543894977,-4103.23,0.00056164,120]
[320744514,1711543894987,-3583.19,0.00056164,120]
[320744515,1711543894997,-886.33,0.00056164,120]
[320744516,1711543895007,-672.63,0.00056164,120]
[320744517,1711543895018,-4086.57,0.00056164,120]
[320744518,1711543895028,-500.0,0.00056164,120]
[320744519,1711543895039,-500.0,0.00056164,120]
[320744520,1711543895050,-8381.34,0.00056164,120]
[320744521,1711543895060,-512.61,0.00056164,120]
[320744522,1711543895070,-151.0,0.00056164,120]
[320744523,1711543895081,-34309.32,0.00056164,120]
[320744524,1711543895091,-6247.3,0.00056164,120]
[320744525,1711543895102,-1388.52,0.00056164,120]
[320744526,1711543895113,-1173.99,0.00056164,120]
[320744527,1711543895124,-3278.85,0.00056164,120]
[320744528,1711543895134,-8798.58,0.00056164,120]
[320744529,1711543895145,-500.0,0.00056164,120]
[320744530,1711543895155,-500.0,0.00056164,120]
[320744531,1711543895166,-2480.34,0.00056164,120]
[320744532,1711543895177,-500.0,0.00056164,85]
[320744533,1711543895187,-188.24,0.00056164,120]
[320744534,1711543895198,-1225.44,0.00056164,120]
[320744535,1711543895209,-500.0,0.00056164,120]
[320744536,1711543895219,-676.46,0.00056164,120]
[320744537,1711543895230,-1233.43,0.00056164,120]
[320744538,1711543895240,-500.0,0.00056164,120]
[320744539,1711543895250,-2528.31,0.00056164,120]
[320744540,1711543895260,-500.0,0.00056164,120]
[320744541,1711543895271,-500.0,0.00056164,120]
[320744542,1711543895281,-500.0,0.00056164,120]
[320744543,1711543895292,-1659.22,0.00056164,120]
[320744544,1711543895302,-1083.78,0.00056164,120]
[320744545,1711543895313,-11741.46,0.00056164,120]
[320744546,1711543895323,-2180.01,0.00056164,120]
[320744547,1711543895334,-500.0,0.00056164,120]
[320744548,1711543895344,-1845.88,0.00056164,120]
[320744549,1711543895357,-584.47,0.00056164,120]
[320744550,1711543895367,-8083.93,0.00056164,120]
[320744551,1711543895378,-3516.57,0.00056164,120]
[320744552,1711543895390,-2618.08,0.00056164,120]
[320744553,1711543895401,-3201.11,0.00056164,120]
[320744554,1711543895411,-500.0,0.00056164,120]
[320744555,1711543895422,-650.65,0.00056164,120]
[320744556,1711543895433,-542.70310809,0.00056164,120]
[320744557,1711543895444,-3063.83,0.00056164,120]
[320744558,1711543895455,-500.0,0.00056164,120]
[320744559,1711543895466,-500.0,0.00056164,120]
[320744560,1711543895477,-1350.19,0.00056164,120]
[320744561,1711543895487,-1927.24,0.00056164,120]
[320744562,1711543895497,-901.69,0.00056164,120]
[320744563,1711543895507,-544.48,0.00056164,120]
[320744564,1711543895517,-2225.83,0.00056164,120]
[320744565,1711543895527,-500.0,0.00056164,120]
[320744566,1711543895538,-1141.16,0.00056164,120]
[320744567,1711543895549,-1139.26,0.00056164,120]
[320744568,1711543895559,-500.0,0.00056164,120]
[320744569,1711543895570,-832.09,0.00056164,120]
[320744570,1711543895580,-2166.83,0.00056164,120]
[320744571,1711543895591,-579.16,0.00056164,120]
[320744572,1711543895602,-3156.0,0.00056164,120]
[320744573,1711543895612,-151.0,0.00056164,120]
[320744574,1711543895622,-596.08,0.00056164,120]
[320744575,1711543895632,-151.0,0.00056164,14]
[320744576,1711543895642,-2931.63,0.00056164,120]
[320744577,1711543895653,-666.49,0.00056164,120]
[320744578,1711543895665,-937.27,0.00056164,120]
[320744579,1711543895675,-500.0,0.00056164,120]
[320744580,1711543895685,-1458.74,0.00056164,120]
[320744581,1711543895696,-2453.89,0.00056164,120]
[320744582,1711543895706,-157.032721,0.00056198,111]
[320744583,1711543895715,-163.60210769,0.00056203,120]
[320744584,1711543895726,-190.24451948,0.00056292,120]
[320744585,1711543895736,-151.41,0.000563,35]
[320744586,1711543895746,-494.0,0.000563,46]
[320744587,1711543895756,-268.379999,0.000563,120]
[320744588,1711543895767,-5069.0,0.000563,15]
[320744589,1711543895777,-392.04787,0.000563,35]
[320744590,1711543895788,-150.0,0.000563,23]
[320744591,1711543895799,-1107.90831877,0.00056384,120]
[320744592,1711543895810,-282.33678653,0.00056384,120]
[320744593,1711543895821,-303.12040052,0.00056384,120]
[320744594,1711543895832,-609.98857698,0.00056393,120]
[320744595,1711543895843,-155.71,0.000564,8]
[320744596,1711543895855,-155.71,0.000564,8]
[320744597,1711543895866,-155.71,0.000564,8]
[320744598,1711543895877,-507.0,0.00056411,120]
[320744599,1711543895886,-4795.899798,0.0005642,30]
[320744600,1711543895897,-251.41097012,0.00056437,90]
[320744601,1711543895907,-500.0,0.00056437,90]
[320744602,1711543895917,-522.2,0.00056438,120]
[320744603,1711543895927,-1993.78983359,0.00056438,120]
[320744604,1711543895938,-500.0,0.00056438,120]
[320744605,1711543895948,-500.0,0.00056438,120]
[320744606,1711543895958,-500.0,0.00056438,120]
[320744607,1711543895968,-500.0,0.00056438,120]
[320744608,1711543895978,-500.0,0.00056438,120]
[320744609,1711543895988,-500.0,0.00056438,120]
[320744610,1711543895998,-585.22,0.00056438,120]
[320744611,1711543896011,-500.0,0.00056438,120]
[320744612,1711543896021,-11437.01441624,0.00056438,92]
[320744613,1711543896033,-11437.01441624,0.00056438,92]
[320744614,1711543896043,-11437.01441624,0.00056438,92]
[320744615,1711543896053,-11437.01441624,0.00056438,92]
[320744616,1711543896063,-11437.01441624,0.00056438,92]
[320744617,1711543896074,-11437.01441624,0.00056438,92]
[320744618,1711543896085,-663.06,0.00056438,120]
[320744619,1711543896095,-11437.01441624,0.00056438,92]
[320744620,1711543896107,-11437.01441624,0.00056438,92]
[320744621,1711543896117,-11437.01441624,0.00056438,92]
[320744622,1711543896127,-11437.01341624,0.00056438,92]
[320744623,1711543896137,-500.0,0.00056438,120]
[320744624,1711543896147,-587.11,0.00056438,120]
[320744625,1711543896159,-500.0,0.00056438,120]
[320744626,1711543896170,-500.0,0.00056438,120]
[320744627,1711543896180,-500.0,0.00056438,120]
[320744628,1711543896191,-500.0,0.00056438,120]
[320744629,1711543896201,-597.38,0.00056438,120]
[320744630,1711543896212,-616.91,0.00056438,120]
[320744631,1711543896222,-500.0,0.00056438,120]
[320744632,1711543896232,-500.0,0.00056438,120]
[320744633,1711543896242,-695.95,0.00056438,120]
[320744634,1711543896251,-500.0,0.00056438,120]
[320744635,1711543896262,-500.0,0.00056438,120]
[320744636,1711543896273,-500.05,0.00056438,120]
[320744637,1711543896284,-500.0,0.00056438,120]
[320744638,1711543896294,-500.0,0.00056438,120]
[320744639,1711543896305,-500.0,0.00056438,120]
[320744640,1711543896315,-500.0,0.00056438,120]
[320744641,1711543896325,-204.05655516,0.00056438,120]
[320744642,1711543896336,-518.1,0.00056438,120]
[320744643,1711543896345,-500.0,0.00056438,120]
[320744644,1711543896357,-500.0,0.00056438,120]
[320744645,1711543896367,-500.0,0.00056438,120]
[320744646,1711543896377,-500.0,0.00056438,120]
[320744647,1711543896387,-526.24,0.00056438,120]
[320744648,1711543896398,-500.0,0.00056438,120]
[320744649,1711543896408,-500.0,0.00056438,120]
[320744650,1711543896419,-500.0,0.00056438,120]
[320744651,1711543896428,-455.38937021,0.00056438,120]
[320744652,1711543896439,-509.36,0.00056438,120]
[320744653,1711543896449,-669.48,0.00056438,120]
[320744654,1711543896459,-500.0,0.00056438,120]
[320744655,1711543896469,-525.09,0.00056438,120]
[320744656,1711543896479,-500.0,0.00056438,120]
[320744657,1711543896489,-500.0,0.00056438,120]
[320744658,1711543896501,-500.0,0.00056438,120]
[320744659,1711543896510,-500.0,0.00056438,120]
[320744660,1711543896520,-500.0,0.00056438,120]
[320744661,1711543896531,-516.74,0.00056438,120]
[320744662,1711543896542,-500.0,0.00056438,60]
[320744663,1711543896553,-500.0,0.00056438,60]
[320744664,1711543896564,-320.14,0.00056438,120]
[320744665,1711543896574,-500.0,0.00056438,120]
[320744666,1711543896585,-500.0,0.00056438,120]
[320744667,1711543896595,-500.0,0.00056438,120]
[320744668,1711543896606,-500.0,0.00056438,120]
[320744669,1711543896617,-500.0,0.00056438,120]
[320744670,1711543896628,-500.0,0.00056438,120]
[320744671,1711543896638,-1126.03,0.00056438,120]
[320744672,1711543896653,-620.43,0.00056438,120]
[320744673,1711543896664,-597.62,0.00056438,120]
[320744674,1711543896675,-1965.76,0.00056438,120]
[320744675,1711543896686,-500.0,0.00056438,120]
[320744676,1711543896697,-921.37,0.00056438,120]
[320744677,1711543896708,-2740.9,0.00056438,120]
[320744678,1711543896719,-500.0,0.00056438,120]
[320744679,1711543896730,-5471.51,0.00056438,120]
[320744680,1711543896741,-500.0,0.00056438,120]
[320744681,1711543896751,-500.0,0.00056438,120]
[320744682,1711543896760,-884.38,0.00056438,120]
[320744683,1711543896772,-500.0,0.00056438,120]
[320744684,1711543896783,-1170.95,0.00056438,120]
[320744685,1711543896793,-500.0,0.00056438,120]
[320744686,1711543896805,-1057.95,0.00056438,120]
[320744687,1711543896816,-533.04,0.00056438,120]
[320744688,1711543896827,-2051.46,0.00056438,120]
[320744689,1711543896838,-500.0,0.00056438,120]
[320744690,1711543896848,-500.0,0.00056438,120]
[320744691,1711543896859,-500.0,0.00056438,120]
[320744692,1711543896871,-702.45,0.00056438,120]
[320744693,1711543896882,-545.51,0.00056438,120]
[320744694,1711543896893,-931.2,0.00056438,120]
[320744695,1711543896903,-3285.02,0.00056438,120]
[320744696,1711543896914,-512.74,0.00056438,120]
[320744697,1711543896925,-596.37,0.00056438,120]
[320744698,1711543896936,-500.0,0.00056438,120]
[320744699,1711543896947,-500.0,0.00056438,120]
[320744700,1711543896957,-500.0,0.00056438,120]
[320744701,1711543896967,-643.73,0.00056438,120]
[320744702,1711543896978,-503.92,0.00056438,120]
[320744703,1711543896988,-500.0,0.00056438,120]
[320744704,1711543896998,-500.0,0.00056438,120]
[320744705,1711543897009,-500.0,0.00056438,120]
[320744706,1711543897019,-604.98,0.00056438,120]
[320744707,1711543897029,-500.0,0.00056438,120]
[320744708,1711543897039,-668.88,0.00056438,120]
[320744709,1711543897049,-1068.26,0.00056438,120]
[320744710,1711543897060,-792.02,0.00056438,120]
[320744711,1711543897070,-956.84,0.00056438,120]
[320744712,1711543897080,-1164.57,0.00056438,120]
[320744713,1711543897090,-500.0,0.00056438,120]
[320744714,1711543897099,-663.5,0.00056438,120]
[320744715,1711543897110,-500.0,0.00056438,120]
[320744716,1711543897120,-575.0,0.00056438,120]
[320744717,1711543897131,-1108.61,0.00056438,120]
[320744718,1711543897142,-1061.65,0.00056438,120]
[320744719,1711543897151,-865.88,0.00056438,120]
[320744720,1711543897161,-500.0,0.00056438,120]
[320744721,1711543897171,-500.0,0.00056438,120]
[320744722,1711543897181,-328.71,0.00056438,120]
[320744723,1711543897191,-500.0,0.00056438,120]
[320744724,1711543897201,-151.0,0.00056438,120]
[320744725,1711543897211,-500.0,0.00056438,120]
[320744726,1711543897221,-2925.46,0.00056438,120]
[320744727,1711543897231,-500.0,0.00056438,120]
[320744728,1711543897242,-168.960606,0.00056438,120]
[320744729,1711543897252,-391.45035586,0.00056438,120]
[320744730,1711543897263,-500.0,0.00056438,120]
[320744731,1711543897274,-798.22,0.00056438,120]
[320744732,1711543897285,-670.39,0.00056438,120]
[320744733,1711543897296,-1050.1,0.00056438,120]
[320744734,1711543897306,-698.77,0.00056438,120]
[320744735,1711543897315,-831.36,0.00056438,60]
[320744736,1711543897325,-813.47,0.00056438,120]
[320744737,1711543897335,-805.48,0.00056438,120]
[320744738,1711543897345,-895.29,0.00056438,120]
[320744739,1711543897356,-566.16,0.00056438,120]
[320744740,1711543897366,-500.0,0.00056438,120]
[320744741,1711543897376,-1059.6,0.00056438,120]
[320744742,1711543897386,-2482.66,0.00056438,120]
[320744743,1711543897397,-500.0,0.00056438,120]
[320744744,1711543897406,-624.76,0.00056438,120]
[320744745,1711543897417,-1090.65,0.00056438,120]
[320744746,1711543897427,-500.0,0.00056438,120]
[320744747,1711543897438,-596.27,0.00056438,120]
[320744748,1711543897448,-730.57,0.00056438,120]
[320744749,1711543897459,-500.0,0.00056438,120]
[320744750,1711543897469,-532.43,0.00056438,120]
[320744751,1711543897480,-500.0,0.00056438,120]
[320744752,1711543897490,-1096.84,0.00056438,120]
[320744753,1711543897501,-982.22,0.00056438,120]
[320744754,1711543897511,-500.0,0.00056438,120]
[320744755,1711543897521,-2012.56,0.00056438,120]
[320744756,1711543897532,-500.0,0.00056438,120]
[320744757,1711543897542,-888.32,0.00056438,120]
[320744758,1711543897553,-2118.58,0.00056438,120]
[320744759,1711543897564,-500.0,0.00056438,120]
[320744760,1711543897575,-500.0,0.00056438,120]
[320744761,1711543897585,-843.94,0.00056438,120]
[320744762,1711543897596,-952.22,0.00056438,120]
[320744763,1711543897790,-2323.15,0.00056438,120]
[320744764,1711543897802,-500.0,0.00056438,120]
[320744765,1711543897812,-670.15,0.00056438,120]
[320744766,1711543897822,-1267.74,0.00056438,120]
[320744767,1711543897833,-646.84,0.00056438,120]
[320744768,1711543897843,-500.0,0.00056438,120]
[320744769,1711543897854,-1027.05,0.00056438,120]
[320744770,1711543897864,-151.0,0.00056438,120]
[320744771,1711543897874,-500.0,0.00056438,120]
[320744772,1711543897884,-500.0,0.00056438,120]
[320744773,1711543897894,-151.0,0.00056438,120]
[320744774,1711543897904,-1044.31,0.00056438,120]
[320744775,1711543897914,-2014.61,0.00056438,120]
[320744776,1711543897924,-500.0,0.00056438,120]
[320744777,1711543897935,-852.33,0.00056438,120]
[320744778,1711543897945,-151.0,0.00056438,120]
[320744779,1711543897955,-151.0,0.00056438,120]
[320744780,1711543897966,-500.0,0.00056438,120]
[320744781,1711543897976,-632.68,0.00056438,120]
[320744782,1711543897985,-500.0,0.00056438,120]
[320744783,1711543897996,-500.0,0.00056438,120]
[320744784,1711543898006,-500.0,0.00056438,120]
[320744785,1711543898016,-509.92,0.00056438,120]
[320744786,1711543898026,-500.0,0.00056438,120]
[320744787,1711543898037,-797.02,0.00056438,30]
[320744788,1711543898047,-693.91,0.00056438,120]
[320744789,1711543898057,-151.0,0.00056438,120]
[320744790,1711543898067,-818.9,0.00056438,120]
[320744791,1711543898077,-903.82,0.00056438,120]
[320744792,1711543898087,-500.0,0.00056438,120]
[320744793,1711543898097,-500.0,0.00056438,120]
[320744794,1711543898108,-500.0,0.00056438,120]
[320744795,1711543898119,-734.77,0.00056438,120]
[320744796,1711543898129,-500.0,0.00056438,120]
[320744797,1711543898140,-645.24,0.00056438,120]
[320744798,1711543898151,-763.33,0.00056438,120]
[320744799,1711543898161,-587.45,0.00056438,120]
[320744800,1711543898171,-785.61,0.00056438,120]
[320744801,1711543898181,-608.04,0.00056438,120]
[320744802,1711543898192,-156.54,0.00056438,120]
[320744803,1711543898203,-713.05,0.00056438,120]
[320744804,1711543898213,-524.62,0.00056438,120]
[320744805,1711543898222,-1415.79,0.00056438,120]
[320744806,1711543898232,-788.63,0.00056438,120]
[320744807,1711543898243,-2273.07,0.00056438,120]
[320744808,1711543898253,-500.0,0.00056438,120]
[320744809,1711543898264,-2011.71,0.00056438,120]
[320744810,1711543898274,-621.56,0.00056438,120]
[320744811,1711543898285,-677.22,0.00056438,120]
[320744812,1711543898295,-500.0,0.00056438,120]
[320744813,1711543898306,-807.51,0.00056438,120]
[320744814,1711543898316,-500.0,0.00056438,120]
[320744815,1711543898326,-800.48,0.00056438,120]
[320744816,1711543898336,-755.18,0.00056438,120]
[320744817,1711543898346,-229.96,0.00056438,120]
[320744818,1711543898356,-842.7,0.00056438,120]
[320744819,1711543898365,-1004.28,0.00056438,120]
[320744820,1711543898374,-2063.63,0.00056438,120]
[320744821,1711543898384,-500.0,0.00056438,120]
[320744822,1711543898395,-500.0,0.00056438,120]
[320744823,1711543898405,-500.0,0.00056438,120]
[320744824,1711543898415,-500.0,0.00056438,120]
[320744825,1711543898425,-500.0,0.00056438,120]
[320744826,1711543898434,-500.0,0.00056438,120]
[320744827,1711543898445,-500.0,0.00056438,120]
[320744828,1711543898455,-676.12,0.00056438,120]
[320744829,1711543898465,-500.0,0.00056438,120]
[320744830,1711543898476,-500.0,0.00056438,120]
[320744831,1711543898486,-500.0,0.00056438,120]
[320744832,1711543898496,-500.0,0.00056438,120]
[320744833,1711543898505,-500.0,0.00056438,120]
[320744834,1711543898516,-500.0,0.00056438,120]
[320744835,1711543898525,-559.56,0.00056438,120]
[320744836,1711543898536,-500.0,0.00056438,120]
[320744837,1711543898546,-406.5,0.00056438,120]
[320744838,1711543898555,-500.0,0.00056438,120]
[320744839,1711543898565,-760.12,0.00056438,120]
[320744840,1711543898575,-2308.15,0.00056438,120]
[320744841,1711543898585,-2030.15,0.00056438,120]
[320744842,1711543898594,-500.0,0.00056438,120]
[320744843,1711543898604,-895.23,0.00056438,120]
[320744844,1711543898614,-615.23,0.00056438,120]
[320744845,1711543898624,-500.0,0.00056438,120]
[320744846,1711543898633,-500.0,0.00056438,120]
[320744847,1711543898643,-500.0,0.00056438,120]
[320744848,1711543898654,-500.0,0.00056438,120]
[320744849,1711543898666,-500.0,0.00056438,120]
[320744850,1711543898675,-500.0,0.00056438,120]
[320744851,1711543898685,-988.02,0.00056438,120]
[320744852,1711543898695,-339.52,0.00056438,120]
[320744853,1711543898705,-1436.62,0.00056438,120]
[320744854,1711543898715,-500.0,0.00056438,120]
[320744855,1711543898725,-783.0,0.00056438,120]
[320744856,1711543898735,-500.0,0.00056438,120]
[320744857,1711543898746,-500.0,0.00056438,120]
[320744858,1711543898755,-368.8,0.00056438,120]
[320744859,1711543898765,-1016.45,0.00056438,120]
[320744860,1711543898774,-521.03,0.00056438,120]
[320744861,1711543898785,-612.71,0.00056438,120]
[320744862,1711543898795,-545.88,0.00056438,120]
[320744863,1711543898805,-877.53,0.00056438,120]
[320744864,1711543898814,-10990.32,0.00056438,120]
[320744865,1711543898824,-500.0,0.00056438,120]
[320744866,1711543898833,-500.0,0.00056438,120]
[320744867,1711543898844,-500.0,0.00056438,120]
[320744868,1711543898855,-500.0,0.00056438,120]
[320744869,1711543898865,-2044.63,0.00056438,120]
[320744870,1711543898875,-570.02,0.00056438,120]
[320744871,1711543898886,-4311.07,0.00056438,120]
[320744872,1711543898895,-500.0,0.00056438,120]
[320744873,1711543898905,-1347.96,0.00056438,120]
[320744874,1711543898915,-500.0,0.00056438,120]
[320744875,1711543898925,-500.0,0.00056438,120]
[320744876,1711543898936,-500.0,0.00056438,120]
[320744877,1711543898945,-500.0,0.00056438,120]
[320744878,1711543898955,-976.2,0.00056438,120]
[320744879,1711543898965,-1434.29,0.00056438,120]
[320744880,1711543898976,-839.83,0.00056438,120]
[320744881,1711543898986,-7133.78,0.00056438,120]
[320744882,1711543898995,-355.2,0.00056438,120]
[320744883,1711543899005,-545.62,0.00056438,120]
[320744884,1711543899015,-500.0,0.00056438,120]
[320744885,1711543899025,-500.0,0.00056438,120]
[320744886,1711543899034,-500.0,0.00056438,120]
[320744887,1711543899044,-500.0,0.00056438,120]
[320744888,1711543899054,-500.0,0.00056438,120]
[320744889,1711543899063,-500.0,0.00056438,120]
[320744890,1711543899072,-531.34,0.00056438,120]
[320744891,1711543899082,-5109.09,0.00056438,120]
[320744892,1711543899091,-551.49,0.00056438,120]
[320744893,1711543899101,-7954.08,0.00056438,120]
[320744894,1711543899112,-1365.01,0.00056438,120]
[320744895,1711543899122,-3477.52,0.00056438,120]
[320744896,1711543899132,-1944.43,0.00056438,120]
[320744897,1711543899141,-500.0,0.00056438,120]
[320744898,1711543899151,-500.0,0.00056438,120]
[320744899,1711543899161,-22670.34,0.00056438,120]
[320744900,1711543899170,-500.0,0.00056438,120]
[320744901,1711543899179,-726.92,0.00056438,120]
[320744902,1711543899189,-15912.74,0.00056438,120]
[320744903,1711543899199,-500.0,0.00056438,120]
[320744904,1711543899208,-5197.8,0.00056438,120]
[320744905,1711543899218,-500.0,0.00056438,120]
[320744906,1711543899227,-500.0,0.00056438,120]
[320744907,1711543899237,-500.0,0.00056438,120]
[320744908,1711543899247,-500.0,0.00056438,120]
[320744909,1711543899256,-500.0,0.00056438,120]
[320744910,1711543899266,-3753.0,0.00056438,120]
[320744911,1711543899276,-5025.57,0.00056438,120]
[320744912,1711543899286,-1032.54,0.00056438,120]
[320744913,1711543899296,-2884.81,0.00056438,120]
[320744914,1711543899306,-525.19,0.00056438,120]
[320744915,1711543899316,-500.0,0.00056438,120]
[320744916,1711543899326,-500.0,0.00056438,120]
[320744917,1711543899336,-516.48,0.00056438,120]
[320744918,1711543899346,-551.61560999,0.00056438,120]
[320744919,1711543899355,-832.53,0.00056438,120]
[320744920,1711543899365,-1554.43,0.00056438,120]
[320744921,1711543899375,-5602.14,0.00056438,120]
[320744922,1711543899385,-2733.23,0.00056438,120]
[320744923,1711543899394,-500.0,0.00056438,120]
[320744924,1711543899404,-1416.51,0.00056438,120]
[320744925,1711543899414,-508.12,0.00056438,120]
[320744926,1711543899423,-2082.72,0.00056438,120]
[320744927,1711543899432,-3295.4,0.00056438,120]
[320744928,1711543899442,-1108.32,0.00056438,120]
[320744929,1711543899452,-500.0,0.00056438,120]
[320744930,1711543899462,-3406.52,0.00056438,120]
[320744931,1711543899472,-79296.15,0.00056438,120]
[320744932,1711543899482,-500.0,0.00056438,120]
[320744933,1711543899491,-21230.92,0.00056438,120]
[320744934,1711543899501,-500.0,0.00056438,120]
[320744935,1711543899511,-786.05,0.00056438,120]
[320744936,1711543899521,-575.24,0.00056438,120]
[320744937,1711543899531,-500.0,0.00056438,120]
[320744938,1711543899540,-3470.89,0.00056438,120]
[320744939,1711543899551,-794.6,0.00056438,120]
[320744940,1711543899561,-1436.29,0.00056438,120]
[320744941,1711543899571,-500.0,0.00056438,120]
[320744942,1711543899581,-4270.02,0.00056438,120]
[320744943,1711543899590,-500.0,0.00056438,120]
[320744944,1711543899600,-13832.31,0.00056438,120]
[320744945,1711543899611,-2558.6,0.00056438,120]
[320744946,1711543899621,-9397.34,0.00056438,120]
[320744947,1711543899631,-500.0,0.00056438,120]
[320744948,1711543899641,-1488.59,0.00056438,120]
[320744949,1711543899651,-4828.26,0.00056438,120]
[320744950,1711543899664,-1008.05,0.00056438,120]
[320744951,1711543899673,-3178.59,0.00056438,120]
[320744952,1711543899682,-544.36,0.00056438,120]
[320744953,1711543899693,-500.0,0.00056438,120]
[320744954,1711543899703,-3085.25,0.00056438,120]
[320744955,1711543899712,-751.31,0.00056438,120]
[320744956,1711543899723,-582.28,0.00056438,120]
[320744957,1711543899732,-2368.29,0.00056438,120]
[320744958,1711543899744,-1000.0,0.00056438,14]
[320744959,1711543899755,-2699.02,0.00056438,120]
[320744960,1711543899765,-5971.8,0.00056438,120]
[320744961,1711543899775,-3173.89,0.00056438,120]
[320744962,1711543899785,-411.91,0.00056438,120]
[320744963,1711543899795,-500.0,0.00056438,120]
[320744964,1711543899804,-500.0,0.00056438,120]
[320744965,1711543899814,-643.2,0.00056438,120]
[320744966,1711543899824,-2196.71,0.00056438,120]
[320744967,1711543899834,-5725.46,0.00056438,120]
[320744968,1711543899844,-500.0,0.00056438,120]
[320744969,1711543899854,-775.97,0.00056438,120]
[320744970,1711543899865,-4233.1,0.00056438,120]
[320744971,1711543899875,-500.0,0.00056438,120]